[Event "Titled Tuesday Blitz January 03 Early 2023"]
[White "Zohid6"]
[Black "Iskusnyh, Sergei"]
[BlackFideId "4120027"]
[WhiteElo "2748"]
[BlackElo "2440"]
[Result "0-1"]
[Round "08"]
[TimeControl "180+2"]
[Date "2023.01.03"]
[WhiteClock "0:01:57"]
[BlackClock "0:00:52"]

1. d4 {[%clk 0:02:59]}  Nf6 {[%clk 0:02:58]} 2. Nc3 {[%clk 0:03:00]}  d5 {[%clk 0:02:57]} 3. Bf4 {[%clk 0:02:57]}  c5 {[%clk 0:02:56]} 4. e4 {[%clk 0:02:57]}  Nxe4 {[%clk 0:02:52]} 5. Nxe4 {[%clk 0:02:57]}  dxe4 {[%clk 0:02:52]} 6. dxc5 {[%clk 0:02:58]}  Qa5+ {[%clk 0:02:44]} 7. c3 {[%clk 0:02:58]}  Qxc5 {[%clk 0:02:44]} 8. Qa4+ {[%clk 0:02:58]}  Bd7 {[%clk 0:02:41]} 9. Qxe4 {[%clk 0:02:58]}  Bc6 {[%clk 0:02:39]} 10. Qc2 {[%clk 0:02:58]}  e6 {[%clk 0:02:35]} 11. Be3 {[%clk 0:02:55]}  Qa5 {[%clk 0:02:32]} 12. Nf3 {[%clk 0:02:55]}  Be7 {[%clk 0:02:30]} 13. Nd4 {[%clk 0:02:55]}  O-O {[%clk 0:02:26]} 14. Bd3 {[%clk 0:02:52]}  g6 {[%clk 0:02:24]} 15. h4 {[%clk 0:02:52]}  e5 {[%clk 0:02:07]} 16. Nxc6 {[%clk 0:02:47]}  Nxc6 {[%clk 0:02:07]} 17. h5 {[%clk 0:02:48]}  Nd4 {[%clk 0:01:48]} 18. Qd1 {[%clk 0:02:42]}  Nf5 {[%clk 0:01:41]} 19. hxg6 {[%clk 0:02:35]}  fxg6 {[%clk 0:01:34]} 20. Bc4+ {[%clk 0:02:26]}  Kh8 {[%clk 0:01:32]} 21. Qg4 {[%clk 0:02:20]}  Nxe3 {[%clk 0:01:22]} 22. Qxg6 {[%clk 0:02:17]}  Nxg2+ {[%clk 0:01:12]} 23. Kf1 {[%clk 0:02:15]}  Nh4 {[%clk 0:01:11]} 24. Qh5 {[%clk 0:02:04]}  Rf5 {[%clk 0:01:03]} 25. Qg4 {[%clk 0:02:00]}  Raf8 {[%clk 0:01:01]} 26. Rh2 {[%clk 0:02:00]}  Rf4 {[%clk 0:00:55]} 27. Qe6 {[%clk 0:01:57]}  Qc5 {[%clk 0:00:52]} 0-1


[Site "https://www.chess.com"]

[Event "Titled Tuesday Blitz January 03 Early 2023"]
[White "Starozhilov, Leonid"]
[Black "Omelja, Artem"]
[WhiteFideId "14106752"]
[BlackFideId "14119846"]
[WhiteElo "2313"]
[BlackElo "2446"]
[Result "1-0"]
[Round "08"]
[TimeControl "180+2"]
[Date "2023.01.03"]
[WhiteClock "0:00:45"]
[BlackClock "0:00:02"]

1. e4 {[%clk 0:02:52]}  c5 {[%clk 0:02:59]} 2. Nf3 {[%clk 0:02:50]}  Nc6 {[%clk 0:02:59]} 3. Bb5 {[%clk 0:02:50]}  g6 {[%clk 0:02:58]} 4. O-O {[%clk 0:02:50]}  Bg7 {[%clk 0:02:58]} 5. Nc3 {[%clk 0:02:50]}  e5 {[%clk 0:02:55]} 6. a3 {[%clk 0:02:50]}  Nge7 {[%clk 0:02:53]} 7. b4 {[%clk 0:02:51]}  b6 {[%clk 0:02:50]} 8. bxc5 {[%clk 0:02:50]}  bxc5 {[%clk 0:02:51]} 9. d3 {[%clk 0:02:37]}  O-O {[%clk 0:02:49]} 10. Bc4 {[%clk 0:02:37]}  Nd4 {[%clk 0:02:47]} 11. Bg5 {[%clk 0:02:33]}  h6 {[%clk 0:02:44]} 12. Bxe7 {[%clk 0:02:32]}  Qxe7 {[%clk 0:02:45]} 13. Nd5 {[%clk 0:02:32]}  Qd6 {[%clk 0:02:42]} 14. c3 {[%clk 0:02:24]}  Nxf3+ {[%clk 0:02:40]} 15. Qxf3 {[%clk 0:02:25]}  Bb7 {[%clk 0:02:39]} 16. Rab1 {[%clk 0:02:24]}  Bc6 {[%clk 0:02:39]} 17. Ne3 {[%clk 0:02:01]}  Kh7 {[%clk 0:02:20]} 18. Bd5 {[%clk 0:02:01]}  f5 {[%clk 0:02:18]} 19. Bxc6 {[%clk 0:01:46]}  Qxc6 {[%clk 0:02:02]} 20. exf5 {[%clk 0:01:00]}  Qxf3 {[%clk 0:01:35]} 21. fxg6+ {[%clk 0:00:59]}  Kxg6 {[%clk 0:01:35]} 22. gxf3 {[%clk 0:01:00]}  Rxf3 {[%clk 0:01:14]} 23. Rb7 {[%clk 0:01:00]}  Rf7 {[%clk 0:01:13]} 24. Nd5 {[%clk 0:00:53]}  d6 {[%clk 0:01:08]} 25. Rxf7 {[%clk 0:00:51]}  Kxf7 {[%clk 0:01:08]} 26. Rb1 {[%clk 0:00:52]}  Bf6 {[%clk 0:00:12]} 27. Rb7+ {[%clk 0:00:50]}  Kg6 {[%clk 0:00:12]} 28. Rd7 {[%clk 0:00:50]}  Rd8 {[%clk 0:00:11]} 29. Nxf6 {[%clk 0:00:50]}  Rb8 {[%clk 0:00:09]} 30. Ne4 {[%clk 0:00:49]}  Rb3 {[%clk 0:00:06]} 31. Rxd6+ {[%clk 0:00:49]}  Kh5 {[%clk 0:00:04]} 32. Rd5 {[%clk 0:00:46]}  Rxa3 {[%clk 0:00:02]} 33. Rxe5+ {[%clk 0:00:46]}  Kh4 {[%clk 0:00:03]} 34. Kg2 {[%clk 0:00:45]}  c4 {[%clk 0:00:02]} 35. dxc4 {[%clk 0:00:45]}  Ra4 {[%clk 0:00:02]} 36. c5 {[%clk 0:00:45]} 1-0


[Site "https://www.chess.com"]

[Event "Titled Tuesday Blitz January 03 Early 2023"]
[White "Goryachkina, Aleksandra"]
[Black "Aggelis, Nikolaos"]
[WhiteFideId "4147103"]
[BlackFideId "4213220"]
[WhiteElo "2571"]
[BlackElo "2270"]
[Result "1-0"]
[Round "08"]
[TimeControl "180+2"]
[Date "2023.01.03"]
[WhiteClock "0:00:14"]
[BlackClock "0:00:35"]

1. e4 {[%clk 0:03:00]}  c6 {[%clk 0:02:59]} 2. d4 {[%clk 0:02:59]}  d5 {[%clk 0:03:00]} 3. e5 {[%clk 0:03:00]}  f6 {[%clk 0:02:49]} 4. Nf3 {[%clk 0:02:40]}  Nd7 {[%clk 0:02:35]} 5. Bd3 {[%clk 0:02:36]}  fxe5 {[%clk 0:02:34]} 6. dxe5 {[%clk 0:02:36]}  Nc5 {[%clk 0:02:32]} 7. O-O {[%clk 0:02:32]}  Bg4 {[%clk 0:02:31]} 8. h3 {[%clk 0:02:26]}  Bh5 {[%clk 0:02:30]} 9. Nbd2 {[%clk 0:02:18]}  Nxd3 {[%clk 0:02:30]} 10. cxd3 {[%clk 0:02:18]}  e6 {[%clk 0:02:31]} 11. Qa4 {[%clk 0:02:09]}  Ne7 {[%clk 0:02:24]} 12. Ng5 {[%clk 0:02:03]}  Qd7 {[%clk 0:02:20]} 13. f4 {[%clk 0:01:58]}  h6 {[%clk 0:02:20]} 14. Ngf3 {[%clk 0:01:58]}  Bg6 {[%clk 0:02:19]} 15. d4 {[%clk 0:01:54]}  Bd3 {[%clk 0:02:18]} 16. Rf2 {[%clk 0:01:52]}  Bb5 {[%clk 0:02:18]} 17. Qc2 {[%clk 0:01:51]}  c5 {[%clk 0:02:13]} 18. dxc5 {[%clk 0:01:45]}  Rc8 {[%clk 0:02:09]} 19. a4 {[%clk 0:01:38]}  Ba6 {[%clk 0:02:01]} 20. b4 {[%clk 0:01:35]}  Nf5 {[%clk 0:02:02]} 21. Ba3 {[%clk 0:01:31]}  b6 {[%clk 0:02:01]} 22. b5 {[%clk 0:01:13]}  Bxc5 {[%clk 0:01:58]} 23. Bxc5 {[%clk 0:01:12]}  Rxc5 {[%clk 0:01:59]} 24. Qd3 {[%clk 0:01:11]}  Bb7 {[%clk 0:01:58]} 25. Nb3 {[%clk 0:01:08]}  Rc4 {[%clk 0:01:55]} 26. Nfd2 {[%clk 0:01:03]}  Rc8 {[%clk 0:01:41]} 27. g4 {[%clk 0:01:03]}  Nh4 {[%clk 0:01:37]} 28. Nd4 {[%clk 0:00:58]}  O-O {[%clk 0:01:36]} 29. f5 {[%clk 0:00:56]}  exf5 {[%clk 0:01:31]} 30. gxf5 {[%clk 0:00:56]}  Qe7 {[%clk 0:01:32]} 31. Qg3 {[%clk 0:00:50]}  g5 {[%clk 0:01:13]} 32. Raf1 {[%clk 0:00:46]}  Qb4 {[%clk 0:01:09]} 33. Qg4 {[%clk 0:00:44]}  Rc7 {[%clk 0:01:01]} 34. f6 {[%clk 0:00:43]}  Bc8 {[%clk 0:01:00]} 35. e6 {[%clk 0:00:39]}  Qd6 {[%clk 0:00:57]} 36. f7+ {[%clk 0:00:32]}  Kh8 {[%clk 0:00:55]} 37. Rf6 {[%clk 0:00:30]}  Kg7 {[%clk 0:00:50]} 38. N2f3 {[%clk 0:00:24]}  Rc3 {[%clk 0:00:48]} 39. Nf5+ {[%clk 0:00:14]}  Nxf5 {[%clk 0:00:45]} 40. Qxf5 {[%clk 0:00:14]}  Qg3+ {[%clk 0:00:45]} 41. Kh1 {[%clk 0:00:14]}  Rxf3 {[%clk 0:00:36]} 42. Qg6+ {[%clk 0:00:13]}  Kh8 {[%clk 0:00:35]} 43. Qxh6# {[%clk 0:00:14]} 1-0


[Site "https://www.chess.com"]

[Event "Titled Tuesday Blitz January 03 Early 2023"]
[White "Parpiev, Isaak"]
[Black "Aradhya, Garg"]
[WhiteFideId "34281576"]
[BlackFideId "25006746"]
[WhiteElo "2167"]
[BlackElo "2284"]
[Result "0-1"]
[Round "08"]
[TimeControl "180+2"]
[Date "2023.01.03"]
[WhiteClock "0:00:01"]
[BlackClock "0:01:03"]

1. Nf3 {[%clk 0:02:44]}  Nf6 {[%clk 0:02:59]} 2. d4 {[%clk 0:02:43]}  d5 {[%clk 0:02:58]} 3. c4 {[%clk 0:02:43]}  c6 {[%clk 0:02:58]} 4. Nc3 {[%clk 0:02:43]}  dxc4 {[%clk 0:02:57]} 5. a4 {[%clk 0:02:41]}  Bf5 {[%clk 0:02:57]} 6. Ne5 {[%clk 0:02:41]}  e6 {[%clk 0:02:56]} 7. Nxc4 {[%clk 0:02:40]}  c5 {[%clk 0:02:32]} 8. Qb3 {[%clk 0:01:39]}  Nc6 {[%clk 0:02:25]} 9. Qxb7 {[%clk 0:01:11]}  Nxd4 {[%clk 0:02:24]} 10. Ne3 {[%clk 0:01:07]}  Be7 {[%clk 0:02:13]} 11. f3 {[%clk 0:00:45]}  O-O {[%clk 0:02:09]} 12. Kf2 {[%clk 0:00:43]}  c4 {[%clk 0:01:45]} 13. Nxf5 {[%clk 0:00:34]}  exf5 {[%clk 0:01:45]} 14. Be3 {[%clk 0:00:19]}  Nc2 {[%clk 0:01:36]} 15. Rd1 {[%clk 0:00:18]}  Qb8 {[%clk 0:01:34]} 16. Qxe7 {[%clk 0:00:17]}  Re8 {[%clk 0:01:33]} 17. Qd6 {[%clk 0:00:11]}  Nxe3 {[%clk 0:01:31]} 18. Rd4 {[%clk 0:00:07]}  Qxb2 {[%clk 0:01:27]} 19. Nd1 {[%clk 0:00:04]}  Qc1 {[%clk 0:01:14]} 20. g3 {[%clk 0:00:01]}  c3 {[%clk 0:01:04]} 21. Bh3 {[%clk 0:00:01]}  Nxd1+ {[%clk 0:01:03]} 0-1


[Site "https://www.chess.com"]

[Event "Titled Tuesday Blitz January 03 Early 2023"]
[White "Bettalli, Francesco"]
[Black "Abdilkhair, Abilmansur"]
[WhiteFideId "2816453"]
[BlackFideId "13716417"]
[WhiteElo "2252"]
[BlackElo "2268"]
[Result "0-1"]
[Round "08"]
[TimeControl "180+2"]
[Date "2023.01.03"]
[WhiteClock "0:01:24"]
[BlackClock "0:00:11"]

1. d4 {[%clk 0:03:00]}  Nf6 {[%clk 0:02:56]} 2. Nc3 {[%clk 0:03:00]}  d5 {[%clk 0:02:53]} 3. Bg5 {[%clk 0:02:58]}  Nbd7 {[%clk 0:02:51]} 4. Qd3 {[%clk 0:02:58]}  e6 {[%clk 0:02:48]} 5. O-O-O {[%clk 0:02:57]}  Be7 {[%clk 0:02:44]} 6. f3 {[%clk 0:02:56]}  c5 {[%clk 0:02:38]} 7. e4 {[%clk 0:02:53]}  c4 {[%clk 0:01:43]} 8. Qd2 {[%clk 0:02:51]}  b5 {[%clk 0:01:34]} 9. e5 {[%clk 0:02:37]}  b4 {[%clk 0:01:20]} 10. exf6 {[%clk 0:02:36]}  bxc3 {[%clk 0:01:18]} 11. Qxc3 {[%clk 0:02:37]}  Nxf6 {[%clk 0:01:13]} 12. Ne2 {[%clk 0:02:28]}  O-O {[%clk 0:01:07]} 13. Ng3 {[%clk 0:02:25]}  Rb8 {[%clk 0:01:04]} 14. a3 {[%clk 0:02:24]}  Bd7 {[%clk 0:00:50]} 15. h4 {[%clk 0:02:12]}  Rb7 {[%clk 0:00:50]} 16. h5 {[%clk 0:02:08]}  h6 {[%clk 0:00:47]} 17. Bf4 {[%clk 0:02:05]}  Ne8 {[%clk 0:00:42]} 18. Kd2 {[%clk 0:02:01]}  Nd6 {[%clk 0:00:39]} 19. Qe3 {[%clk 0:01:54]}  Rxb2 {[%clk 0:00:32]} 20. Be5 {[%clk 0:01:55]}  Qa5+ {[%clk 0:00:30]} 21. Qc3 {[%clk 0:01:53]}  Qb6 {[%clk 0:00:24]} 22. Be2 {[%clk 0:01:47]}  Ba4 {[%clk 0:00:24]} 23. Rc1 {[%clk 0:01:43]}  f6 {[%clk 0:00:20]} 24. Bf4 {[%clk 0:01:40]}  Ra2 {[%clk 0:00:17]} 25. Rb1 {[%clk 0:01:38]}  Qa6 {[%clk 0:00:15]} 26. Rhc1 {[%clk 0:01:38]}  Nb5 {[%clk 0:00:11]} 27. Qe3 {[%clk 0:01:38]}  Bxa3 {[%clk 0:00:10]} 28. Rh1 {[%clk 0:01:24]}  Qa5+ {[%clk 0:00:11]} 0-1


[Site "https://www.chess.com"]

[Event "Titled Tuesday Blitz January 03 Early 2023"]
[White "Khamdamova, Afruza"]
[Black "Csonka, Balazs"]
[WhiteFideId "14210444"]
[BlackFideId "742910"]
[WhiteElo "2162"]
[BlackElo "2496"]
[Result "0-1"]
[Round "08"]
[TimeControl "180+2"]
[Date "2023.01.03"]
[WhiteClock "0:00:10"]
[BlackClock "0:00:04"]

1. e4 {[%clk 0:03:00]}  e6 {[%clk 0:02:33]} 2. d4 {[%clk 0:03:00]}  d5 {[%clk 0:02:33]} 3. Nd2 {[%clk 0:03:00]}  Be7 {[%clk 0:02:28]} 4. Ngf3 {[%clk 0:03:00]}  Nf6 {[%clk 0:02:27]} 5. Bd3 {[%clk 0:02:57]}  c5 {[%clk 0:02:26]} 6. e5 {[%clk 0:02:50]}  Nfd7 {[%clk 0:02:25]} 7. c3 {[%clk 0:02:50]}  Nc6 {[%clk 0:02:24]} 8. O-O {[%clk 0:02:50]}  g5 {[%clk 0:02:24]} 9. Kh1 {[%clk 0:02:46]}  g4 {[%clk 0:02:02]} 10. Ng1 {[%clk 0:02:46]}  h5 {[%clk 0:02:02]} 11. Bb5 {[%clk 0:02:27]}  cxd4 {[%clk 0:01:36]} 12. Bxc6 {[%clk 0:02:26]}  bxc6 {[%clk 0:01:37]} 13. cxd4 {[%clk 0:02:26]}  c5 {[%clk 0:01:20]} 14. f4 {[%clk 0:02:09]}  cxd4 {[%clk 0:00:57]} 15. Nb3 {[%clk 0:02:09]}  Ba6 {[%clk 0:00:57]} 16. Rf2 {[%clk 0:02:00]}  d3 {[%clk 0:00:43]} 17. Be3 {[%clk 0:01:57]}  Rc8 {[%clk 0:00:41]} 18. Bd4 {[%clk 0:01:50]}  Bc4 {[%clk 0:00:21]} 19. f5 {[%clk 0:01:48]}  Bh4 {[%clk 0:00:14]} 20. Rf1 {[%clk 0:01:47]}  Qe7 {[%clk 0:00:11]} 21. fxe6 {[%clk 0:01:36]}  fxe6 {[%clk 0:00:12]} 22. Nd2 {[%clk 0:01:30]}  Rf8 {[%clk 0:00:08]} 23. b3 {[%clk 0:01:28]}  Ba6 {[%clk 0:00:07]} 24. Rxf8+ {[%clk 0:01:22]}  Kxf8 {[%clk 0:00:08]} 25. h3 {[%clk 0:01:17]}  Bg5 {[%clk 0:00:03]} 26. Nf1 {[%clk 0:01:11]}  Qh7 {[%clk 0:00:03]} 27. Qe1 {[%clk 0:00:58]}  Ke8 {[%clk 0:00:02]} 28. Rd1 {[%clk 0:00:58]}  d2 {[%clk 0:00:01]} 29. Nxd2 {[%clk 0:00:57]}  Rc2 {[%clk 0:00:02]} 30. a4 {[%clk 0:00:41]}  Rxd2 {[%clk 0:00:02]} 31. Rxd2 {[%clk 0:00:41]}  Bxd2 {[%clk 0:00:03]} 32. Qxd2 {[%clk 0:00:41]}  Qe4 {[%clk 0:00:04]} 33. Bxa7 {[%clk 0:00:33]}  Bf1 {[%clk 0:00:04]} 34. Qf2 {[%clk 0:00:28]}  Bd3 {[%clk 0:00:03]} 35. Bd4 {[%clk 0:00:24]}  Nxe5 {[%clk 0:00:03]} 36. Bxe5 {[%clk 0:00:24]}  Qxe5 {[%clk 0:00:04]} 37. a5 {[%clk 0:00:24]}  Be4 {[%clk 0:00:03]} 38. b4 {[%clk 0:00:21]}  d4 {[%clk 0:00:03]} 39. a6 {[%clk 0:00:14]}  d3 {[%clk 0:00:04]} 40. a7 {[%clk 0:00:14]}  Qd5 {[%clk 0:00:03]} 41. Kh2 {[%clk 0:00:13]}  d2 {[%clk 0:00:04]} 42. a8=Q+ {[%clk 0:00:10]}  Qxa8 {[%clk 0:00:04]} 43. Qxd2 {[%clk 0:00:10]}  Qb8+ {[%clk 0:00:04]} 44. g3 {[%clk 0:00:10]}  Qe5 {[%clk 0:00:04]} 45. Qf4 {[%clk 0:00:10]}  Qb2+ {[%clk 0:00:04]} 0-1


[Site "https://www.chess.com"]

[Event "Titled Tuesday Blitz January 03 Early 2023"]
[White "Averjanov, Alexey"]
[Black "Gheorghiu, Calin"]
[WhiteFideId "14109867"]
[BlackFideId "1200305"]
[WhiteElo "2399"]
[BlackElo "2313"]
[Result "1-0"]
[Round "08"]
[TimeControl "180+2"]
[Date "2023.01.03"]
[WhiteClock "0:00:42"]
[BlackClock "0:00:03"]

1. d4 {[%clk 0:03:00]}  Nf6 {[%clk 0:02:56]} 2. c4 {[%clk 0:03:01]}  e6 {[%clk 0:02:55]} 3. Nf3 {[%clk 0:03:01]}  c5 {[%clk 0:02:55]} 4. g3 {[%clk 0:02:59]}  cxd4 {[%clk 0:02:53]} 5. Nxd4 {[%clk 0:03:00]}  Nc6 {[%clk 0:02:53]} 6. Bg2 {[%clk 0:03:00]}  Bb4+ {[%clk 0:02:44]} 7. Bd2 {[%clk 0:03:00]}  Bc5 {[%clk 0:02:33]} 8. Nb3 {[%clk 0:02:57]}  Be7 {[%clk 0:02:32]} 9. O-O {[%clk 0:02:53]}  O-O {[%clk 0:02:32]} 10. Nc3 {[%clk 0:02:47]}  d6 {[%clk 0:02:32]} 11. Rc1 {[%clk 0:02:46]}  a6 {[%clk 0:02:29]} 12. Bf4 {[%clk 0:02:43]}  Nh5 {[%clk 0:02:08]} 13. Be3 {[%clk 0:01:40]}  Bd7 {[%clk 0:01:55]} 14. Na4 {[%clk 0:01:37]}  Be8 {[%clk 0:01:36]} 15. Nb6 {[%clk 0:01:36]}  Rb8 {[%clk 0:01:35]} 16. a4 {[%clk 0:01:36]}  Ne5 {[%clk 0:01:23]} 17. a5 {[%clk 0:01:36]}  Bc6 {[%clk 0:01:03]} 18. Nd4 {[%clk 0:01:36]}  Bxg2 {[%clk 0:01:01]} 19. Kxg2 {[%clk 0:01:37]}  Nf6 {[%clk 0:00:52]} 20. Qa4 {[%clk 0:01:34]}  Ne4 {[%clk 0:00:49]} 21. Rfd1 {[%clk 0:01:33]}  Nc5 {[%clk 0:00:48]} 22. Qa2 {[%clk 0:01:33]}  Ned7 {[%clk 0:00:47]} 23. Nxd7 {[%clk 0:01:29]}  Qxd7 {[%clk 0:00:46]} 24. b4 {[%clk 0:01:29]}  Ne4 {[%clk 0:00:45]} 25. f3 {[%clk 0:01:29]}  Nf6 {[%clk 0:00:37]} 26. Rc2 {[%clk 0:01:30]}  Rbc8 {[%clk 0:00:35]} 27. Rdc1 {[%clk 0:01:30]}  d5 {[%clk 0:00:34]} 28. Bf2 {[%clk 0:01:26]}  Bxb4 {[%clk 0:00:30]} 29. cxd5 {[%clk 0:01:21]}  Nxd5 {[%clk 0:00:29]} 30. e4 {[%clk 0:01:17]}  Nf6 {[%clk 0:00:21]} 31. Ne2 {[%clk 0:01:06]}  Rxc2 {[%clk 0:00:20]} 32. Rxc2 {[%clk 0:01:07]}  Rc8 {[%clk 0:00:19]} 33. Rb2 {[%clk 0:01:05]}  Bc5 {[%clk 0:00:18]} 34. Qb3 {[%clk 0:01:02]}  Bxf2 {[%clk 0:00:18]} 35. Kxf2 {[%clk 0:01:03]}  Rc7 {[%clk 0:00:17]} 36. Kg2 {[%clk 0:01:01]}  h5 {[%clk 0:00:17]} 37. h4 {[%clk 0:00:59]}  Qc6 {[%clk 0:00:16]} 38. Nf4 {[%clk 0:00:59]}  e5 {[%clk 0:00:15]} 39. Nd5 {[%clk 0:00:56]}  Nxd5 {[%clk 0:00:12]} 40. exd5 {[%clk 0:00:57]}  Qd6 {[%clk 0:00:10]} 41. Rd2 {[%clk 0:00:55]}  g6 {[%clk 0:00:06]} 42. Kh2 {[%clk 0:00:52]}  Kg7 {[%clk 0:00:06]} 43. Kg2 {[%clk 0:00:52]}  f6 {[%clk 0:00:06]} 44. Kh2 {[%clk 0:00:51]}  Rd7 {[%clk 0:00:05]} 45. Qc4 {[%clk 0:00:51]}  Rc7 {[%clk 0:00:05]} 46. Qb3 {[%clk 0:00:51]}  Rd7 {[%clk 0:00:02]} 47. Kg2 {[%clk 0:00:51]}  Qc5 {[%clk 0:00:02]} 48. Qa4 {[%clk 0:00:49]}  Qb5 {[%clk 0:00:02]} 49. Qa2 {[%clk 0:00:48]}  Rd6 {[%clk 0:00:02]} 50. Kh2 {[%clk 0:00:43]}  Qc5 {[%clk 0:00:02]} 51. Qb3 {[%clk 0:00:42]}  Qe3 {[%clk 0:00:03]} 52. Qxe3 {[%clk 0:00:42]} 1-0


[Site "https://www.chess.com"]

[Event "Titled Tuesday Blitz January 03 Early 2023"]
[White "Suleymanli, Suleyman"]
[Black "reevecanada"]
[WhiteFideId "13416375"]
[WhiteElo "2269"]
[BlackElo "2477"]
[Result "1-0"]
[Round "08"]
[TimeControl "180+2"]
[Date "2023.01.03"]
[WhiteClock "0:00:24"]
[BlackClock "0:00:25"]

1. Nf3 {[%clk 0:03:00]}  d5 {[%clk 0:02:55]} 2. g3 {[%clk 0:03:00]}  Nf6 {[%clk 0:02:54]} 3. Bg2 {[%clk 0:03:01]}  e6 {[%clk 0:02:55]} 4. O-O {[%clk 0:03:00]}  c5 {[%clk 0:02:56]} 5. d4 {[%clk 0:03:00]}  Nc6 {[%clk 0:02:56]} 6. c4 {[%clk 0:02:59]}  Be7 {[%clk 0:02:55]} 7. Nc3 {[%clk 0:02:58]}  dxc4 {[%clk 0:02:55]} 8. Qa4 {[%clk 0:02:58]}  O-O {[%clk 0:02:46]} 9. dxc5 {[%clk 0:02:55]}  Bxc5 {[%clk 0:02:47]} 10. Qxc4 {[%clk 0:02:54]}  Bb6 {[%clk 0:02:47]} 11. Bf4 {[%clk 0:02:53]}  Bd7 {[%clk 0:02:46]} 12. Ne5 {[%clk 0:02:53]}  Rc8 {[%clk 0:02:45]} 13. Nxd7 {[%clk 0:02:51]}  Qxd7 {[%clk 0:02:46]} 14. Rfd1 {[%clk 0:02:51]}  Nd4 {[%clk 0:02:45]} 15. Qd3 {[%clk 0:02:50]}  Qe7 {[%clk 0:02:41]} 16. e3 {[%clk 0:02:49]}  Nf5 {[%clk 0:02:41]} 17. e4 {[%clk 0:02:43]}  Rfd8 {[%clk 0:02:39]} 18. Qf1 {[%clk 0:02:44]}  Nd4 {[%clk 0:02:37]} 19. e5 {[%clk 0:02:42]}  Ne8 {[%clk 0:02:36]} 20. Ne4 {[%clk 0:02:40]}  h6 {[%clk 0:02:33]} 21. Nd6 {[%clk 0:02:39]}  Rc2 {[%clk 0:02:31]} 22. Kh1 {[%clk 0:02:07]}  Rxb2 {[%clk 0:02:12]} 23. Nxb7 {[%clk 0:02:04]}  Rb8 {[%clk 0:02:11]} 24. Nd6 {[%clk 0:02:04]}  Nf5 {[%clk 0:01:58]} 25. Nxf5 {[%clk 0:01:59]}  exf5 {[%clk 0:01:57]} 26. Rd2 {[%clk 0:02:00]}  Rxd2 {[%clk 0:01:56]} 27. Bxd2 {[%clk 0:02:00]}  Rd8 {[%clk 0:01:54]} 28. Bc3 {[%clk 0:01:57]}  Bd4 {[%clk 0:01:52]} 29. Bxd4 {[%clk 0:01:55]}  Rxd4 {[%clk 0:01:53]} 30. Qb5 {[%clk 0:01:55]}  Nc7 {[%clk 0:01:51]} 31. Qb8+ {[%clk 0:01:54]}  Kh7 {[%clk 0:01:48]} 32. Re1 {[%clk 0:01:53]}  Ne6 {[%clk 0:01:45]} 33. Kg1 {[%clk 0:01:51]}  Qd7 {[%clk 0:01:43]} 34. Qb1 {[%clk 0:01:48]}  g6 {[%clk 0:01:39]} 35. h4 {[%clk 0:01:49]}  Rd2 {[%clk 0:01:38]} 36. h5 {[%clk 0:01:45]}  Qd4 {[%clk 0:01:32]} 37. hxg6+ {[%clk 0:01:45]}  fxg6 {[%clk 0:01:28]} 38. Qb7+ {[%clk 0:01:45]}  Kg8 {[%clk 0:01:24]} 39. Rf1 {[%clk 0:01:29]}  Qxe5 {[%clk 0:01:19]} 40. Qxa7 {[%clk 0:01:27]}  f4 {[%clk 0:01:18]} 41. Bh3 {[%clk 0:01:12]}  Ng5 {[%clk 0:01:07]} 42. Qa8+ {[%clk 0:01:04]}  Kg7 {[%clk 0:01:06]} 43. Bg2 {[%clk 0:01:03]}  Qd4 {[%clk 0:00:50]} 44. Qb7+ {[%clk 0:01:00]}  Nf7 {[%clk 0:00:48]} 45. g4 {[%clk 0:00:44]}  Kf6 {[%clk 0:00:40]} 46. Bf3 {[%clk 0:00:38]}  Ne5 {[%clk 0:00:36]} 47. Kg2 {[%clk 0:00:38]}  Nd3 {[%clk 0:00:31]} 48. Qc6+ {[%clk 0:00:27]}  Kg5 {[%clk 0:00:28]} 49. Qb5+ {[%clk 0:00:24]}  Kh4 {[%clk 0:00:25]} 50. Rh1# {[%clk 0:00:24]} 1-0


[Site "https://www.chess.com"]

[Event "Titled Tuesday Blitz January 03 Early 2023"]
[White "Khumalo, Keith"]
[Black "Sadovsky, Artem"]
[WhiteFideId "14319470"]
[BlackFideId "4155840"]
[WhiteElo "2099"]
[BlackElo "2276"]
[Result "1-0"]
[Round "08"]
[TimeControl "180+2"]
[Date "2023.01.03"]
[WhiteClock "0:01:14"]
[BlackClock "0:00:27"]

1. d4 {[%clk 0:03:00]}  g6 {[%clk 0:03:00]} 2. c4 {[%clk 0:02:59]}  Bg7 {[%clk 0:03:01]} 3. e4 {[%clk 0:03:00]}  d6 {[%clk 0:03:01]} 4. d5 {[%clk 0:03:00]}  e5 {[%clk 0:03:02]} 5. Bd3 {[%clk 0:03:01]}  f5 {[%clk 0:03:02]} 6. exf5 {[%clk 0:03:01]}  gxf5 {[%clk 0:03:02]} 7. Qh5+ {[%clk 0:03:00]}  Kf8 {[%clk 0:03:03]} 8. Bxf5 {[%clk 0:03:01]}  Nf6 {[%clk 0:03:03]} 9. Qh3 {[%clk 0:03:02]}  Bxf5 {[%clk 0:02:46]} 10. Qxf5 {[%clk 0:03:02]}  Kf7 {[%clk 0:02:46]} 11. Qe6+ {[%clk 0:02:59]}  Kf8 {[%clk 0:02:46]} 12. Nf3 {[%clk 0:02:58]}  Na6 {[%clk 0:02:46]} 13. Ng5 {[%clk 0:02:53]}  Qe8 {[%clk 0:02:46]} 14. Qf5 {[%clk 0:02:52]}  Qg6 {[%clk 0:02:41]} 15. Ne6+ {[%clk 0:02:52]}  Ke7 {[%clk 0:02:41]} 16. Qxg6 {[%clk 0:02:49]}  hxg6 {[%clk 0:02:42]} 17. Nxg7 {[%clk 0:02:50]}  b5 {[%clk 0:02:36]} 18. Ne6 {[%clk 0:02:43]}  bxc4 {[%clk 0:02:35]} 19. Ng5 {[%clk 0:02:35]}  Nb4 {[%clk 0:02:33]} 20. Na3 {[%clk 0:02:34]}  Nbxd5 {[%clk 0:02:33]} 21. Nxc4 {[%clk 0:02:32]}  Rab8 {[%clk 0:02:27]} 22. b3 {[%clk 0:02:32]}  Rh5 {[%clk 0:02:22]} 23. h4 {[%clk 0:02:30]}  Rbh8 {[%clk 0:02:21]} 24. g3 {[%clk 0:02:28]}  e4 {[%clk 0:02:20]} 25. O-O {[%clk 0:02:28]}  Kd7 {[%clk 0:02:13]} 26. Bb2 {[%clk 0:02:24]}  R8h6 {[%clk 0:02:10]} 27. Rad1 {[%clk 0:02:22]}  Kc6 {[%clk 0:02:08]} 28. Rc1 {[%clk 0:02:21]}  Kd7 {[%clk 0:02:07]} 29. Rfe1 {[%clk 0:02:21]}  Nh7 {[%clk 0:01:46]} 30. Nf7 {[%clk 0:02:18]}  Rxh4 {[%clk 0:01:40]} 31. gxh4 {[%clk 0:02:09]}  Rxh4 {[%clk 0:01:41]} 32. Rcd1 {[%clk 0:02:07]}  Nf4 {[%clk 0:01:37]} 33. Rxe4 {[%clk 0:01:58]}  Nh3+ {[%clk 0:01:18]} 34. Kg2 {[%clk 0:01:58]}  Rxe4 {[%clk 0:01:19]} 35. Kxh3 {[%clk 0:01:58]}  Ke7 {[%clk 0:01:06]} 36. Nh8 {[%clk 0:01:43]}  g5 {[%clk 0:00:52]} 37. Rd3 {[%clk 0:01:32]}  Rh4+ {[%clk 0:00:48]} 38. Kg3 {[%clk 0:01:30]}  Nf8 {[%clk 0:00:49]} 39. Re3+ {[%clk 0:01:26]}  Kd7 {[%clk 0:00:50]} 40. Rf3 {[%clk 0:01:25]}  Ne6 {[%clk 0:00:48]} 41. Ng6 {[%clk 0:01:25]}  Rh1 {[%clk 0:00:41]} 42. Kg2 {[%clk 0:01:23]}  Rb1 {[%clk 0:00:36]} 43. Rf7+ {[%clk 0:01:18]}  Kc6 {[%clk 0:00:34]} 44. Ne7+ {[%clk 0:01:15]}  Kc5 {[%clk 0:00:32]} 45. Rf5+ {[%clk 0:01:15]}  Kb4 {[%clk 0:00:27]} 46. Nc6# {[%clk 0:01:14]} 1-0


[Site "https://www.chess.com"]